[Event "Early-Titled-Tuesday-Blitz-March-05-2024"]
[Site "Chess.com"]
[Date "2024.03.05"]
[Round "8"]
[White "Shushik"]
[Black "K_A_S_T_O_R"]
[Result "0-1"]
[WhiteElo "2561"]
[BlackElo "2792"]
[TimeControl "180+1"]
[EndTime "9:30:41 PST"]
[Termination "K_A_S_T_O_R won by resignation"]

1. e4 {[%clk 0:03:00.9]} 1... c5 {[%clk 0:02:59.5]} 2. Ne2 {[%clk 0:03:01.2]}
2... Nf6 {[%clk 0:02:57.2]} 3. Nbc3 {[%clk 0:03:00.5]} 3... d6 {[%clk
0:02:56.8]} 4. d4 {[%clk 0:03:00.8]} 4... cxd4 {[%clk 0:02:57.3]} 5. Nxd4 {[%clk
0:03:01.7]} 5... a6 {[%clk 0:02:57.9]} 6. Be3 {[%clk 0:02:56.4]} 6... e6 {[%clk
0:02:57.3]} 7. f3 {[%clk 0:02:56]} 7... b5 {[%clk 0:02:57]} 8. Qd2 {[%clk
0:02:56.6]} 8... Nbd7 {[%clk 0:02:57.3]} 9. g4 {[%clk 0:02:56.3]} 9... h6 {[%clk
0:02:53.2]} 10. a3 {[%clk 0:02:56.1]} 10... Nb6 {[%clk 0:02:51.3]} 11. O-O-O
{[%clk 0:02:54]} 11... Bb7 {[%clk 0:02:51.1]} 12. h4 {[%clk 0:02:51.4]} 12...
Rc8 {[%clk 0:02:49.6]} 13. Bh3 {[%clk 0:02:48.5]} 13... Nc4 {[%clk 0:02:47.8]}
14. Qe1 {[%clk 0:02:48.5]} 14... Nxe3 {[%clk 0:02:47.7]} 15. Qxe3 {[%clk
0:02:48.5]} 15... Nd7 {[%clk 0:02:40.1]} 16. g5 {[%clk 0:02:46.9]} 16... Ne5
{[%clk 0:02:40.1]} 17. f4 {[%clk 0:02:34.8]} 17... Nc4 {[%clk 0:02:39.3]} 18.
Qe1 {[%clk 0:02:34.8]} 18... hxg5 {[%clk 0:02:31.8]} 19. hxg5 {[%clk 0:02:33.4]}
19... g6 {[%clk 0:02:30.5]} 20. Bxe6 {[%clk 0:02:25.3]} 20... Rxh1 {[%clk
0:02:28]} 21. Qxh1 {[%clk 0:02:17.8]} 21... fxe6 {[%clk 0:02:26.5]} 22. Qh7
{[%clk 0:02:10.8]} 22... Qe7 {[%clk 0:02:25.9]} 23. Qxg6+ {[%clk 0:02:10.7]}
23... Kd7 {[%clk 0:02:26]} 24. f5 {[%clk 0:02:04.7]} 24... exf5 {[%clk
0:02:20.5]} 25. Nxf5 {[%clk 0:01:57.9]} 25... Qe5 {[%clk 0:02:08.6]} 26. Qf7+
{[%clk 0:01:54.4]} 26... Kc6 {[%clk 0:02:08.1]} 27. g6 {[%clk 0:01:38.2]} 27...
Kb6 {[%clk 0:02:05.2]} 28. g7 {[%clk 0:01:34]} 28... Qf4+ {[%clk 0:02:02.4]} 29.
Kb1 {[%clk 0:01:32.7]} 29... Bxg7 {[%clk 0:02:02.6]} 30. Qxg7 {[%clk 0:01:27.9]}
30... Qf2 {[%clk 0:01:59]} 31. Qd4+ {[%clk 0:01:25.5]} 31... Qxd4 {[%clk
0:01:58.4]} 32. Rxd4 {[%clk 0:01:26.2]} 32... Kc7 {[%clk 0:01:50.9]} 33. Ne7
{[%clk 0:01:24]} 33... Rh8 {[%clk 0:01:49.6]} 34. Ncd5+ {[%clk 0:01:22]} 34...
Bxd5 {[%clk 0:01:49.3]} 35. Nxd5+ {[%clk 0:01:21.4]} 35... Kb7 {[%clk
0:01:49.6]} 36. Ka2 {[%clk 0:01:18.2]} 36... Rh2 {[%clk 0:01:48.7]} 37. Kb3
{[%clk 0:01:09.5]} 37... Kc6 {[%clk 0:01:43.1]} 38. Nb4+ {[%clk 0:01:08.6]}
38... Kb6 {[%clk 0:01:43.4]} 39. Nd5+ {[%clk 0:01:05.4]} 39... Kc5 {[%clk
0:01:42.6]} 40. Kc3 {[%clk 0:00:46]} 40... Rh3+ {[%clk 0:01:33.8]} 41. Rd3
{[%clk 0:00:44.2]} 41... Rh4 {[%clk 0:01:33.3]} 42. Nf6 {[%clk 0:00:39.6]} 42...
Rf4 {[%clk 0:01:31.1]} 43. Rd5+ {[%clk 0:00:34.4]} 43... Kc6 {[%clk 0:01:30.9]}
44. Rf5 {[%clk 0:00:35.1]} 44... Rh4 {[%clk 0:01:27.7]} 45. Rf3 {[%clk
0:00:28.9]} 45... Rh2 {[%clk 0:01:21.8]} 46. Nd5 {[%clk 0:00:26.6]} 46... Re2
{[%clk 0:01:19.6]} 47. Nb4+ {[%clk 0:00:25.3]} 47... Kb6 {[%clk 0:01:19]} 48.
Kd3 {[%clk 0:00:21.5]} 48... Rd2+ {[%clk 0:01:16.5]} 49. Kc3 {[%clk 0:00:21.2]}
49... Re2 {[%clk 0:01:17.1]} 50. Kd3 {[%clk 0:00:19.2]} 50... Re1 {[%clk
0:01:17.2]} 51. Nd5+ {[%clk 0:00:16.6]} 51... Kc5 {[%clk 0:01:14.5]} 52. b4+
{[%clk 0:00:15.1]} 52... Kc6 {[%clk 0:01:14.5]} 53. Ne7+ {[%clk 0:00:08]} 53...
Kd7 {[%clk 0:01:14.1]} 54. Ng6 {[%clk 0:00:06.8]} 54... Ra1 {[%clk 0:01:11.3]}
55. Rf7+ {[%clk 0:00:05.9]} 55... Ke6 {[%clk 0:01:10.9]} 56. Ra7 {[%clk
0:00:05.9]} 56... Rxa3+ {[%clk 0:01:10.5]} 57. Ke2 {[%clk 0:00:06.3]} 57... Re3+
{[%clk 0:01:09.2]} 58. Kf2 {[%clk 0:00:07]} 58... Rxe4 {[%clk 0:01:09.7]} 59.
Nf8+ {[%clk 0:00:07.3]} 59... Kd5 {[%clk 0:01:09.6]} 60. Nd7 {[%clk 0:00:06.9]}
60... Rf4+ {[%clk 0:01:09.3]} 61. Kg3 {[%clk 0:00:06.9]} 61... Rf1 {[%clk
0:01:06.2]} 62. Rxa6 {[%clk 0:00:06.8]} 62... Ne3 {[%clk 0:01:06.1]} 63. Nb6+
{[%clk 0:00:06.1]} 63... Ke4 {[%clk 0:01:05.7]} 64. Nd7 {[%clk 0:00:05.5]} 64...
Rg1+ {[%clk 0:01:05.4]} 65. Kf2 {[%clk 0:00:05.1]} 65... Rg2+ {[%clk 0:01:05.7]}
66. Ke1 {[%clk 0:00:05.2]} 66... Kf3 {[%clk 0:01:06.4]} 67. Ne5+ {[%clk
0:00:04.9]} 67... dxe5 {[%clk 0:01:04.6]} 68. Rf6+ {[%clk 0:00:05.4]} 68... Ke4
{[%clk 0:01:04.9]} 0-1

[Event "Early-Titled-Tuesday-Blitz-March-05-2024"]
[Site "Chess.com"]
[Date "2024.03.05"]
[Round "8"]
[White "mfschulz"]
[Black "Preobrazhenska_D2011"]
[Result "1-0"]
[WhiteElo "2323"]
[BlackElo "2434"]
[TimeControl "180+1"]
[EndTime "9:30:41 PST"]
[Termination "mfschulz won on time"]

1. d4 {[%clk 0:02:59.4]} 1... Nf6 {[%clk 0:02:59.7]} 2. Bg5 {[%clk 0:02:59.1]}
2... d5 {[%clk 0:02:48.5]} 3. Bxf6 {[%clk 0:02:58.8]} 3... gxf6 {[%clk
0:02:45.4]} 4. e3 {[%clk 0:02:58.5]} 4... c5 {[%clk 0:02:44.1]} 5. Nc3 {[%clk
0:02:58.5]} 5... Nc6 {[%clk 0:02:33.1]} 6. Qh5 {[%clk 0:02:58.2]} 6... cxd4
{[%clk 0:02:23.8]} 7. exd4 {[%clk 0:02:58.2]} 7... f5 {[%clk 0:02:05.3]} 8.
O-O-O {[%clk 0:02:56.3]} 8... Bg7 {[%clk 0:02:05.1]} 9. Nf3 {[%clk 0:02:55.4]}
9... Be6 {[%clk 0:01:57.4]} 10. Bb5 {[%clk 0:02:40.2]} 10... Qa5 {[%clk
0:01:36.9]} 11. Ng5 {[%clk 0:02:32.9]} 11... O-O-O {[%clk 0:01:24.1]} 12. Bxc6
{[%clk 0:02:32.7]} 12... bxc6 {[%clk 0:01:23]} 13. Nxf7 {[%clk 0:02:25.8]} 13...
Bxf7 {[%clk 0:01:20.3]} 14. Qxf7 {[%clk 0:02:25.9]} 14... Bf6 {[%clk 0:01:19.6]}
15. Qe6+ {[%clk 0:02:25.3]} 15... Kb7 {[%clk 0:01:10.8]} 16. Qxf5 {[%clk
0:02:18.9]} 16... Rhg8 {[%clk 0:01:04.1]} 17. g3 {[%clk 0:02:15.5]} 17... Qb6
{[%clk 0:00:50.7]} 18. Qd3 {[%clk 0:02:10.1]} 18... Ka8 {[%clk 0:00:49.3]} 19.
Rhe1 {[%clk 0:02:00]} 19... Rb8 {[%clk 0:00:46.6]} 20. Na4 {[%clk 0:01:59.8]}
20... Qb4 {[%clk 0:00:45]} 21. b3 {[%clk 0:01:58.2]} 21... Qa3+ {[%clk
0:00:42.4]} 22. Kd2 {[%clk 0:01:51]} 22... Rb4 {[%clk 0:00:34.7]} 23. Qa6 {[%clk
0:01:36.1]} 23... Rxd4+ {[%clk 0:00:33.2]} 24. Ke2 {[%clk 0:01:35.8]} 24... Qb4
{[%clk 0:00:30.2]} 25. Qxc6+ {[%clk 0:01:18.6]} 25... Kb8 {[%clk 0:00:25.8]} 26.
Rxd4 {[%clk 0:01:11.3]} 26... Bxd4 {[%clk 0:00:25.2]} 27. c3 {[%clk 0:01:05]}
27... Qa3 {[%clk 0:00:18.1]} 28. cxd4 {[%clk 0:01:00]} 28... Qxa2+ {[%clk
0:00:17.9]} 29. Kf1 {[%clk 0:01:00.2]} 29... Rf8 {[%clk 0:00:16.1]} 30. Qb5+
{[%clk 0:00:51.2]} 30... Ka8 {[%clk 0:00:14]} 31. Qxd5+ {[%clk 0:00:47.9]} 31...
Kb8 {[%clk 0:00:14.6]} 32. Qe5+ {[%clk 0:00:45.4]} 32... Ka8 {[%clk 0:00:14.5]}
33. Re2 {[%clk 0:00:42.4]} 33... Qb1+ {[%clk 0:00:14.6]} 34. Kg2 {[%clk
0:00:41.9]} 34... Qxb3 {[%clk 0:00:12.6]} 35. Nc5 {[%clk 0:00:40.8]} 35... Qf3+
{[%clk 0:00:12.9]} 36. Kg1 {[%clk 0:00:39]} 36... Qc6 {[%clk 0:00:06.7]} 37.
Qxe7 {[%clk 0:00:35]} 37... Rb8 {[%clk 0:00:06]} 38. Qe4 {[%clk 0:00:33.5]}
38... Qxe4 {[%clk 0:00:05.3]} 39. Rxe4 {[%clk 0:00:32.9]} 39... Rb1+ {[%clk
0:00:05.4]} 40. Kg2 {[%clk 0:00:32.6]} 40... a5 {[%clk 0:00:05.3]} 41. Re8+
{[%clk 0:00:32.7]} 41... Ka7 {[%clk 0:00:05.9]} 42. Re7+ {[%clk 0:00:32.9]}
42... Ka8 {[%clk 0:00:05.2]} 43. Rxh7 {[%clk 0:00:31.7]} 43... Rd1 {[%clk
0:00:04.2]} 44. Rd7 {[%clk 0:00:31.3]} 44... Rc1 {[%clk 0:00:03.8]} 45. h4
{[%clk 0:00:31.3]} 45... Rc4 {[%clk 0:00:04.2]} 46. h5 {[%clk 0:00:31.1]} 46...
a4 {[%clk 0:00:04.4]} 47. h6 {[%clk 0:00:31.4]} 47... a3 {[%clk 0:00:03.7]} 48.
h7 {[%clk 0:00:31.8]} 48... Rb4 {[%clk 0:00:03.2]} 49. h8=Q+ {[%clk 0:00:27.9]}
49... Rb8 {[%clk 0:00:03.9]} 50. Qg7 {[%clk 0:00:25.9]} 1-0

[Event "Early-Titled-Tuesday-Blitz-March-05-2024"]
[Site "Chess.com"]
[Date "2024.03.05"]
[Round "8"]
[White "xxysoul6"]
[Black "HansOnTwitch"]
[Result "1/2-1/2"]
[WhiteElo "2942"]
[BlackElo "3110"]
[TimeControl "180+1"]
[EndTime "9:30:43 PST"]
[Termination "Game drawn by repetition"]

1. e4 {[%clk 0:03:00.9]} 1... c5 {[%clk 0:02:59.6]} 2. Nf3 {[%clk 0:03:00.9]}
2... d6 {[%clk 0:03:00.3]} 3. d4 {[%clk 0:03:01.4]} 3... cxd4 {[%clk 0:03:01.2]}
4. Nxd4 {[%clk 0:03:02.1]} 4... Nf6 {[%clk 0:03:01.8]} 5. Nc3 {[%clk 0:03:02.3]}
5... a6 {[%clk 0:03:01.5]} 6. Be3 {[%clk 0:03:01.2]} 6... e5 {[%clk 0:03:00.8]}
7. Nb3 {[%clk 0:02:59.4]} 7... Be6 {[%clk 0:03:00.4]} 8. f3 {[%clk 0:02:51.6]}
8... h5 {[%clk 0:03:00.1]} 9. Qd2 {[%clk 0:02:50.5]} 9... Nbd7 {[%clk
0:02:59.8]} 10. O-O-O {[%clk 0:02:45.7]} 10... Rc8 {[%clk 0:02:57.9]} 11. Kb1
{[%clk 0:02:43.8]} 11... Be7 {[%clk 0:02:52.1]} 12. h4 {[%clk 0:02:41.7]} 12...
b5 {[%clk 0:02:52]} 13. Nd5 {[%clk 0:02:19.1]} 13... Nxd5 {[%clk 0:02:50.1]} 14.
exd5 {[%clk 0:02:19]} 14... Bf5 {[%clk 0:02:50.8]} 15. Bd3 {[%clk 0:02:18.5]}
15... Bxd3 {[%clk 0:02:50.8]} 16. Qxd3 {[%clk 0:02:19.4]} 16... Qc7 {[%clk
0:02:46.8]} 17. g4 {[%clk 0:02:17.2]} 17... hxg4 {[%clk 0:02:32.9]} 18. fxg4
{[%clk 0:02:18.1]} 18... Qc4 {[%clk 0:02:33]} 19. Qd2 {[%clk 0:01:53.7]} 19...
Qxg4 {[%clk 0:02:21.6]} 20. Rhg1 {[%clk 0:01:42.8]} 20... Qe4 {[%clk 0:02:17.3]}
21. Rxg7 {[%clk 0:01:39.5]} 21... Rxh4 {[%clk 0:02:16.9]} 22. Na5 {[%clk
0:01:23]} 22... Nf6 {[%clk 0:02:10.8]} 23. Nc6 {[%clk 0:01:06.8]} 23... Bf8
{[%clk 0:02:08.9]} 24. Rgg1 {[%clk 0:00:59.2]} 24... Nxd5 {[%clk 0:02:07.5]} 25.
Bg5 {[%clk 0:00:53]} 25... Rxc6 {[%clk 0:00:55.9]} 26. Rge1 {[%clk 0:00:40.2]}
26... Qc4 {[%clk 0:00:27.6]} 27. Bxh4 {[%clk 0:00:37.6]} 27... Nb4 {[%clk
0:00:27.7]} 28. Rxe5+ {[%clk 0:00:35.3]} 28... Kd7 {[%clk 0:00:27.7]} 29. b3
{[%clk 0:00:28]} 29... Qxh4 {[%clk 0:00:28.2]} 30. Rf5 {[%clk 0:00:20.6]} 30...
Nxc2 {[%clk 0:00:15.6]} 31. Rxf7+ {[%clk 0:00:17.9]} 31... Be7 {[%clk
0:00:16.1]} 32. Qd5 {[%clk 0:00:12.2]} 32... Na3+ {[%clk 0:00:12.9]} 33. Kb2
{[%clk 0:00:10.9]} 33... Rc2+ {[%clk 0:00:13.1]} 34. Ka1 {[%clk 0:00:06.3]}
34... Qh8+ {[%clk 0:00:08.1]} 35. Rd4 {[%clk 0:00:06.2]} 35... Qd8 {[%clk
0:00:01.8]} 36. Qxd6+ {[%clk 0:00:06.1]} 36... Kc8 {[%clk 0:00:02.4]} 37. Qxa6+
{[%clk 0:00:04.6]} 37... Kc7 {[%clk 0:00:02.3]} 38. Rxd8 {[%clk 0:00:04.3]}
38... Rc1+ {[%clk 0:00:02.3]} 39. Kb2 {[%clk 0:00:04.6]} 39... Rc2+ {[%clk
0:00:03]} 40. Ka1 {[%clk 0:00:05]} 40... Rc1+ {[%clk 0:00:03.7]} 41. Kb2 {[%clk
0:00:04.8]} 41... Rc2+ {[%clk 0:00:03.9]} 42. Ka1 {[%clk 0:00:05.1]} 1/2-1/2

[Event "Early-Titled-Tuesday-Blitz-March-05-2024"]
[Site "Chess.com"]
[Date "2024.03.05"]
[Round "8"]
[White "wadsy27"]
[Black "Seochesspie"]
[Result "0-1"]
[WhiteElo "2626"]
[BlackElo "2822"]
[TimeControl "180+1"]
[EndTime "9:30:44 PST"]
[Termination "Seochesspie won by resignation"]

1. Nf3 {[%clk 0:03:00.9]} 1... Nf6 {[%clk 0:03:00.2]} 2. g3 {[%clk 0:03:01.3]}
2... b6 {[%clk 0:02:59.8]} 3. Bg2 {[%clk 0:03:01.5]} 3... Bb7 {[%clk 0:03:00.7]}
4. O-O {[%clk 0:03:01.9]} 4... g6 {[%clk 0:03:00.5]} 5. c4 {[%clk 0:03:01]} 5...
Bg7 {[%clk 0:03:01.1]} 6. d4 {[%clk 0:03:01.6]} 6... O-O {[%clk 0:03:01.7]} 7.
d5 {[%clk 0:03:01.7]} 7... d6 {[%clk 0:02:55.6]} 8. Nc3 {[%clk 0:02:55]} 8...
Nbd7 {[%clk 0:02:55.3]} 9. Nd4 {[%clk 0:02:46.2]} 9... Qc8 {[%clk 0:02:45.6]}
10. h3 {[%clk 0:02:31.4]} 10... Ne5 {[%clk 0:02:42.2]} 11. b3 {[%clk 0:02:27.6]}
11... c5 {[%clk 0:02:40.8]} 12. dxc6 {[%clk 0:02:20.9]} 12... Nxc6 {[%clk
0:02:40.6]} 13. Be3 {[%clk 0:02:18.4]} 13... Nxd4 {[%clk 0:02:38.6]} 14. Bxd4
{[%clk 0:02:17.6]} 14... Bxg2 {[%clk 0:02:38.7]} 15. Kxg2 {[%clk 0:02:18.5]}
15... Rd8 {[%clk 0:02:37.6]} 16. Rc1 {[%clk 0:02:15.9]} 16... Qb7+ {[%clk
0:02:37.4]} 17. Kh2 {[%clk 0:02:15.7]} 17... d5 {[%clk 0:02:26.5]} 18. c5 {[%clk
0:01:04.7]} 18... bxc5 {[%clk 0:02:22.7]} 19. Bxc5 {[%clk 0:01:04.3]} 19... d4
{[%clk 0:02:20.8]} 20. Na4 {[%clk 0:01:01.3]} 20... Ne4 {[%clk 0:02:18.3]} 21.
Rc4 {[%clk 0:00:59]} 21... e5 {[%clk 0:02:10.7]} 22. Ba3 {[%clk 0:00:56.9]}
22... Nc3 {[%clk 0:01:57.7]} 23. Nxc3 {[%clk 0:00:55.6]} 23... dxc3 {[%clk
0:01:58.6]} 24. Qc2 {[%clk 0:00:46.4]} 24... e4 {[%clk 0:01:56.6]} 25. Qxe4
{[%clk 0:00:43]} 25... Qxe4 {[%clk 0:01:56.4]} 26. Rxe4 {[%clk 0:00:43.1]} 26...
Rd2 {[%clk 0:01:57.3]} 27. Rc1 {[%clk 0:00:35.6]} 27... Rxa2 {[%clk 0:01:54.8]}
28. Bb4 {[%clk 0:00:30.6]} 28... Rc8 {[%clk 0:01:50.6]} 29. Rc4 {[%clk
0:00:19.8]} 29... Rxc4 {[%clk 0:01:50]} 30. bxc4 {[%clk 0:00:20.5]} 30... c2
{[%clk 0:01:07.1]} 31. c5 {[%clk 0:00:20.3]} 31... f5 {[%clk 0:01:03.5]} 32. c6
{[%clk 0:00:20]} 32... Be5 {[%clk 0:01:03.6]} 33. f4 {[%clk 0:00:17.4]} 33...
Bc7 {[%clk 0:01:01.4]} 34. Kg2 {[%clk 0:00:17.4]} 34... a5 {[%clk 0:01:00.9]}
35. Bc3 {[%clk 0:00:17.3]} 35... Kf7 {[%clk 0:00:54.9]} 36. Be5 {[%clk
0:00:17.3]} 36... Bxe5 {[%clk 0:00:54.9]} 37. fxe5 {[%clk 0:00:18.2]} 37... Ke6
{[%clk 0:00:52.8]} 38. Kf2 {[%clk 0:00:17]} 38... a4 {[%clk 0:00:52.2]} 39. Ke1
{[%clk 0:00:15.7]} 39... a3 {[%clk 0:00:50.6]} 40. Kd2 {[%clk 0:00:15.7]} 40...
Rb2 {[%clk 0:00:45.6]} 41. Rxc2 {[%clk 0:00:09.1]} 41... Rb8 {[%clk 0:00:39.3]}
42. Ra2 {[%clk 0:00:07.6]} 42... Ra8 {[%clk 0:00:38.5]} 43. Kc3 {[%clk
0:00:06.9]} 43... Kxe5 {[%clk 0:00:38.3]} 44. Kc4 {[%clk 0:00:07.4]} 44... Kd6
{[%clk 0:00:38.5]} 45. Kb5 {[%clk 0:00:06.9]} 45... Kc7 {[%clk 0:00:38.5]} 46.
g4 {[%clk 0:00:05.5]} 46... fxg4 {[%clk 0:00:32.4]} 47. hxg4 {[%clk 0:00:06.4]}
47... h5 {[%clk 0:00:32.8]} 48. gxh5 {[%clk 0:00:06.5]} 48... gxh5 {[%clk
0:00:33.2]} 49. Kb4 {[%clk 0:00:05.8]} 49... h4 {[%clk 0:00:32.4]} 50. e4 {[%clk
0:00:05.1]} 50... h3 {[%clk 0:00:31.9]} 51. Kb3 {[%clk 0:00:05.5]} 51... Kxc6
{[%clk 0:00:30.2]} 52. e5 {[%clk 0:00:05.2]} 52... Kd5 {[%clk 0:00:30.3]} 53.
Rd2+ {[%clk 0:00:04.2]} 53... Kxe5 {[%clk 0:00:30.3]} 54. Ka2 {[%clk 0:00:05]}
54... Ke4 {[%clk 0:00:26.8]} 55. Rh2 {[%clk 0:00:04.5]} 55... Rh8 {[%clk
0:00:25.8]} 56. Kxa3 {[%clk 0:00:04.8]} 56... Kf3 {[%clk 0:00:26.5]} 0-1

[Event "Early-Titled-Tuesday-Blitz-March-05-2024"]
[Site "Chess.com"]
[Date "2024.03.05"]
[Round "8"]
[White "Arteler"]
[Black "Mariia89"]
[Result "0-1"]
[WhiteElo "2409"]
[BlackElo "2267"]
[TimeControl "180+1"]
[EndTime "9:30:44 PST"]
[Termination "Mariia89 won on time"]

1. Nf3 {[%clk 0:02:58.1]} 1... c6 {[%clk 0:02:59.2]} 2. c4 {[%clk 0:02:57.2]}
2... d5 {[%clk 0:02:59.7]} 3. d4 {[%clk 0:02:56.8]} 3... Nf6 {[%clk 0:02:55.5]}
4. Nc3 {[%clk 0:02:56.6]} 4... g6 {[%clk 0:02:51.6]} 5. cxd5 {[%clk 0:02:55.4]}
5... cxd5 {[%clk 0:02:51.9]} 6. g3 {[%clk 0:02:50.5]} 6... Bg7 {[%clk
0:02:51.8]} 7. Bg2 {[%clk 0:02:50.5]} 7... O-O {[%clk 0:02:52.3]} 8. O-O {[%clk
0:02:48.6]} 8... Nc6 {[%clk 0:02:51.8]} 9. e3 {[%clk 0:02:48.5]} 9... Bg4 {[%clk
0:02:50.5]} 10. Qc2 {[%clk 0:02:46.2]} 10... Rc8 {[%clk 0:02:48.2]} 11. a3
{[%clk 0:02:42.6]} 11... Qd7 {[%clk 0:02:41.5]} 12. b4 {[%clk 0:02:39.1]} 12...
Bh3 {[%clk 0:02:26.9]} 13. Bb2 {[%clk 0:02:38.8]} 13... Bxg2 {[%clk 0:02:26.3]}
14. Kxg2 {[%clk 0:02:39.7]} 14... h5 {[%clk 0:02:19.6]} 15. Rac1 {[%clk
0:02:39.2]} 15... a6 {[%clk 0:02:14.4]} 16. Qd2 {[%clk 0:02:30.2]} 16... Qf5
{[%clk 0:02:09.6]} 17. Na4 {[%clk 0:02:26.8]} 17... Ne4 {[%clk 0:02:07.4]} 18.
Qe2 {[%clk 0:02:08.9]} 18... g5 {[%clk 0:01:53.8]} 19. Nc5 {[%clk 0:02:05.7]}
19... Nxc5 {[%clk 0:01:49.9]} 20. bxc5 {[%clk 0:01:56]} 20... Na5 {[%clk
0:01:43.3]} 21. Nd2 {[%clk 0:01:51.4]} 21... g4 {[%clk 0:01:21.9]} 22. Qd1
{[%clk 0:01:25.7]} 22... Rc6 {[%clk 0:01:16.1]} 23. Qc2 {[%clk 0:01:25.9]} 23...
Qg5 {[%clk 0:01:08.9]} 24. Qa4 {[%clk 0:01:09.8]} 24... Nc4 {[%clk 0:00:51.7]}
25. Nxc4 {[%clk 0:01:08]} 25... dxc4 {[%clk 0:00:52.6]} 26. Qxc4 {[%clk
0:01:08.5]} 26... h4 {[%clk 0:00:48.6]} 27. Qe2 {[%clk 0:00:47.7]} 27... h3+
{[%clk 0:00:23.1]} 28. Kg1 {[%clk 0:00:46.7]} 28... Re6 {[%clk 0:00:21.5]} 29.
d5 {[%clk 0:00:26.6]} 29... Qxd5 {[%clk 0:00:20.1]} 30. f3 {[%clk 0:00:20.5]}
30... gxf3 {[%clk 0:00:17.1]} 31. Rxf3 {[%clk 0:00:20.1]} 31... Bxb2 {[%clk
0:00:15.9]} 32. Rd1 {[%clk 0:00:16.5]} 32... Qe4 {[%clk 0:00:14.3]} 33. Rf4
{[%clk 0:00:12.5]} 33... Qxe3+ {[%clk 0:00:13.4]} 34. Qxe3 {[%clk 0:00:10.3]}
34... Rxe3 {[%clk 0:00:14.3]} 35. Rg4+ {[%clk 0:00:07.8]} 35... Bg7 {[%clk
0:00:14.4]} 36. Rf1 {[%clk 0:00:07]} 36... e6 {[%clk 0:00:10.1]} 37. Rff4 {[%clk
0:00:07.4]} 37... Rd8 {[%clk 0:00:09.1]} 38. Re4 {[%clk 0:00:01.8]} 38... Rd1+
{[%clk 0:00:08.3]} 39. Kf2 {[%clk 0:00:01.5]} 39... Rxa3 {[%clk 0:00:07.7]} 0-1

[Event "Early-Titled-Tuesday-Blitz-March-05-2024"]
[Site "Chess.com"]
[Date "2024.03.05"]
[Round "8"]
[White "Azalea95"]
[Black "crazy_m_attack"]
[Result "1-0"]
[WhiteElo "2377"]
[BlackElo "2475"]
[TimeControl "180+1"]
[EndTime "9:30:45 PST"]
[Termination "Azalea95 won on time"]

1. e4 {[%clk 0:02:56]} 1... e5 {[%clk 0:02:59.6]} 2. Nf3 {[%clk 0:02:55.9]} 2...
Nc6 {[%clk 0:03:00]} 3. Bc4 {[%clk 0:02:56.4]} 3... Nf6 {[%clk 0:02:59.2]} 4.
Ng5 {[%clk 0:02:56.6]} 4... d5 {[%clk 0:02:59.5]} 5. exd5 {[%clk 0:02:57.5]}
5... Na5 {[%clk 0:03:00.2]} 6. Bb5+ {[%clk 0:02:57.8]} 6... c6 {[%clk
0:03:00.7]} 7. dxc6 {[%clk 0:02:58.5]} 7... bxc6 {[%clk 0:03:01.6]} 8. Bd3
{[%clk 0:02:59.1]} 8... Ng4 {[%clk 0:03:00.4]} 9. Ne4 {[%clk 0:02:53.4]} 9... f5
{[%clk 0:02:59.7]} 10. Be2 {[%clk 0:02:53.5]} 10... h5 {[%clk 0:02:58]} 11. h3
{[%clk 0:02:53.9]} 11... fxe4 {[%clk 0:02:57.8]} 12. hxg4 {[%clk 0:02:53.7]}
12... Bc5 {[%clk 0:02:57.6]} 13. b4 {[%clk 0:02:42]} 13... Qd4 {[%clk
0:02:56.1]} 14. bxc5 {[%clk 0:02:36.7]} 14... O-O {[%clk 0:02:55.9]} 15. O-O
{[%clk 0:02:28.5]} 15... Qxa1 {[%clk 0:02:55]} 16. Nc3 {[%clk 0:02:28.6]} 16...
e3 {[%clk 0:02:54.9]} 17. gxh5 {[%clk 0:00:46.6]} 17... exf2+ {[%clk 0:02:23.1]}
18. Kh2 {[%clk 0:00:41.4]} 18... Be6 {[%clk 0:02:12.9]} 19. Bf3 {[%clk
0:00:34.3]} 19... Rad8 {[%clk 0:02:03.5]} 20. Qe2 {[%clk 0:00:19.9]} 20... Bc4
{[%clk 0:01:37.5]} 21. d3 {[%clk 0:00:20.1]} 21... Qxc3 {[%clk 0:01:32.8]} 22.
dxc4 {[%clk 0:00:20.2]} 22... Qxc4 {[%clk 0:01:33.4]} 23. Qxf2 {[%clk
0:00:20.4]} 23... e4 {[%clk 0:01:27.9]} 24. Be2 {[%clk 0:00:19.9]} 24... Qxc2
{[%clk 0:00:49.1]} 25. Qe1 {[%clk 0:00:11.1]} 25... Rxf1 {[%clk 0:00:42.7]} 26.
Qxf1 {[%clk 0:00:12]} 26... Rf8 {[%clk 0:00:38.1]} 27. Qe1 {[%clk 0:00:12.3]}
27... Qxc5 {[%clk 0:00:09.1]} 28. h6 {[%clk 0:00:10.9]} 28... g6 {[%clk
0:00:05.3]} 29. Qg3 {[%clk 0:00:07.8]} 29... Qf5 {[%clk 0:00:02.7]} 30. Ba3
{[%clk 0:00:05.4]} 30... Rf7 {[%clk 0:00:02.9]} 31. Bb4 {[%clk 0:00:05.3]} 31...
Nb7 {[%clk 0:00:02.2]} 32. Bc4 {[%clk 0:00:04.4]} 32... Qh5+ {[%clk 0:00:02.7]}
33. Qh3 {[%clk 0:00:04.1]} 33... Qxh3+ {[%clk 0:00:02.7]} 34. Kxh3 {[%clk
0:00:05]} 34... c5 {[%clk 0:00:02.9]} 35. h7+ {[%clk 0:00:05.4]} 35... Kxh7
{[%clk 0:00:03.4]} 36. Bxf7 {[%clk 0:00:05.7]} 36... cxb4 {[%clk 0:00:04]} 37.
Bd5 {[%clk 0:00:06.6]} 37... Nc5 {[%clk 0:00:04.5]} 38. Kg3 {[%clk 0:00:06.8]}
38... a5 {[%clk 0:00:02.9]} 39. Kf4 {[%clk 0:00:07.4]} 39... a4 {[%clk
0:00:03.2]} 40. Ke3 {[%clk 0:00:06.2]} 40... b3 {[%clk 0:00:03.2]} 41. axb3
{[%clk 0:00:07.1]} 41... axb3 {[%clk 0:00:04.1]} 42. Kd4 {[%clk 0:00:07.7]}
42... b2 {[%clk 0:00:04.2]} 43. Ba2 {[%clk 0:00:08]} 1-0